bitfinex/quotes_BTCUSD_20220109
["timestamp","ask_amount","ask_price","bid_price","bid_amount"]
[1641690610677,0.030098,41877.0,41876.0,0.27265995]
[1641690611077,0.630098,41877.0,41876.0,0.03265995]
[1641690611521,0.089808,41877.0,41876.0,0.03265995]
[1641690612321,0.091808,41877.0,41876.0,0.05265995]
[1641690612521,0.086808,41877.0,41876.0,0.05265995]
[1641690613323,0.06171,41877.0,41876.0,0.05265995]
[1641690613527,0.059703,41879.0,41876.0,0.27046157]
[1641690613722,0.00042514,41880.0,41876.0,0.27046157]
[1641690613723,0.00042514,41880.0,41877.0,0.384424]
[1641690613921,0.00042514,41880.0,41878.0,0.059701]
[1641690614122,0.25981151,41880.0,41878.0,0.059701]
[1641690614623,0.31951151,41880.0,41878.0,0.059701]
[1641690614821,0.31951458,41880.0,41878.0,0.059701]
[1641690615482,0.55951458,41880.0,41876.0,0.03265995]
[1641690615880,0.5595021,41880.0,41876.0,0.03265995]
[1641690616284,0.5655021,41880.0,41876.0,0.04865995]
[1641690616683,0.3255021,41880.0,41876.0,0.04865995]
[1641690616883,0.059717,41878.0,41876.0,0.04865995]
[1641690617083,0.425108,41877.0,41876.0,0.04865995]
[1641690617483,0.025108,41877.0,41876.0,0.03265995]
[1641690618090,0.00041568,41880.0,41876.0,0.25398986]
[1641690618285,0.00041568,41880.0,41878.0,0.059696]
[1641690618485,0.00041568,41880.0,41879.0,0.56487512]
[1641690618743,0.00041568,41880.0,41879.0,1.79300189]
[1641690618940,0.00041568,41880.0,41879.0,2.05563007]
[1641690619139,0.00041568,41880.0,41879.0,2.15563007]
[1641690619340,6.001e-05,41889.0,41879.0,2.15563007]
[1641690619540,6.001e-05,41889.0,41888.0,0.29822917]
[1641690619740,6.001e-05,41889.0,41888.0,0.68265317]
[1641690620342,6.001e-05,41889.0,41888.0,0.69065317]
[1641690620945,6.001e-05,41889.0,41888.0,1.15399907]
[1641690621548,6.001e-05,41889.0,41888.0,1.14599907]
[1641690622143,6.001e-05,41889.0,41888.0,1.34599907]
[1641690622347,0.00041001,41890.0,41888.0,1.26299907]
[1641690622576,0.00041001,41890.0,41889.0,1.18058178]
[1641690622776,0.00041001,41890.0,41889.0,0.83058178]
[1641690623978,0.00099602,41891.0,41890.0,0.8]
[1641690624176,0.00099602,41891.0,41890.0,1.72222562]
[1641690624376,0.00041001,41897.0,41892.0,0.8]
[1641690624579,0.00041001,41901.0,41897.0,1.0]
[1641690624777,0.00041001,41901.0,41899.0,1.334424]
[1641690624977,0.00031731,41902.0,41900.0,1.184424]
[1641690625175,0.00031731,41902.0,41901.0,0.584424]
[1641690625779,0.00073964,41902.0,41901.0,0.584424]
[1641690626221,0.00073964,41902.0,41901.0,0.84051162]
[1641690626422,0.00073964,41902.0,41901.0,0.85951162]
[1641690626822,0.00073965,41902.0,41901.0,0.85951162]
[1641690627625,0.00073965,41902.0,41901.0,0.84051162]
[1641690628026,0.00074448,41902.0,41901.0,0.84051162]
[1641690628530,0.00074448,41902.0,41901.0,0.86151162]
[1641690629129,0.00073024,41902.0,41901.0,0.86151162]
[1641690629528,0.00073024,41902.0,41901.0,0.84051162]
[1641690629729,0.00073024,41902.0,41901.0,0.384424]
[1641690629976,0.00073024,41902.0,41901.0,0.384124]
[1641690630376,0.00073024,41902.0,41901.0,0.407124]
[1641690631377,0.00073024,41902.0,41901.0,0.82625387]
[1641690631575,0.00073024,41902.0,41901.0,0.60325387]
[1641690632375,0.00073024,41902.0,41901.0,0.601124]
[1641690633576,0.00073002,41902.0,41901.0,0.584124]
[1641690634421,0.00073002,41902.0,41901.0,0.606124]
[1641690634621,0.00073066,41902.0,41901.0,0.606124]
[1641690635521,0.00073066,41902.0,41901.0,0.584124]
[1641690635722,0.00073066,41902.0,41901.0,0.82915229]
[1641690636023,0.00073066,41902.0,41901.0,0.82415229]
[1641690636426,0.00073066,41902.0,41901.0,0.84215229]
[1641690637673,0.00073066,41902.0,41901.0,0.82415229]
[1641690637872,0.00073064,41902.0,41901.0,0.82415229]
[1641690638273,0.00073064,41902.0,41901.0,0.84215229]
[1641690638977,0.00114397,41902.0,41901.0,0.84215229]
[1641690639174,0.00073064,41902.0,41901.0,0.84215229]
[1641690639575,0.00073064,41902.0,41901.0,0.82415229]
[1641690640377,0.00073064,41902.0,41901.0,0.84315229]
[1641690640778,0.03774752,41909.0,41902.0,0.4]
[1641690640976,0.03774752,41909.0,41905.0,0.05966019]
[1641690642431,0.059664,41908.0,41906.0,0.119322]
[1641690642632,0.059664,41908.0,41906.0,0.059661]
[1641690643430,0.06009014,41908.0,41906.0,0.059661]
[1641690644332,0.06009014,41908.0,41906.0,0.067661]
[1641690644630,0.00041934,41908.0,41906.0,0.067661]
[1641690644833,0.00041934,41908.0,41907.0,0.384171]
[1641690646275,0.00041934,41908.0,41907.0,0.392171]
[1641690647679,0.00041934,41908.0,41907.0,0.384171]
[1641690647879,0.00040094,41908.0,41907.0,0.384171]
[1641690648484,0.00040094,41908.0,41907.0,0.392171]
[1641690648725,0.06006394,41908.0,41907.0,0.008]
[1641690648924,0.86007411,41908.0,41907.0,0.008]
[1641690649123,0.93832111,41908.0,41907.0,0.008]
[1641690649625,1.13832111,41908.0,41907.0,0.0001]
[1641690649923,1.45558609,41908.0,41907.0,0.0001]
[1641690650122,1.35558609,41908.0,41907.0,0.0001]
[1641690650427,1.36158609,41908.0,41907.0,0.0001]
[1641690651725,0.25208526,41898.0,41896.0,0.059683]
[1641690652127,0.0653526,41903.0,41896.0,0.059683]
[1641690652325,0.001,41898.0,41896.0,0.091683]
[1641690653174,0.060681,41898.0,41896.0,0.091683]
[1641690653777,0.060681,41898.0,41896.0,0.032]
[1641690654176,1.17521072,41897.0,41896.0,0.032]
[1641690654377,0.26054958,41895.0,41890.0,0.00084736]
[1641690654577,0.26054958,41895.0,41890.0,0.00042368]
[1641690654578,0.830447,41891.0,41890.0,0.00042368]
[1641690654778,1.55698901,41891.0,41890.0,0.00042368]
[1641690654976,1.55698901,41891.0,41876.0,0.00808363]
[1641690654977,0.8,41890.0,41876.0,0.00808363]
[1641690655178,0.03962,41879.0,41876.0,0.00808363]
[1641690655477,0.07595,41879.0,41876.0,0.00808363]
[1641690655776,0.059711,41878.0,41876.0,0.00808363]
[1641690656429,0.062711,41878.0,41876.0,0.03508363]
[1641690657233,0.062711,41878.0,41876.0,0.03008363]
[1641690657630,0.059711,41878.0,41876.0,0.00308363]
[1641690657930,0.059711,41878.0,41876.0,0.00351592]
[1641690658331,0.061711,41878.0,41876.0,0.02051592]
[1641690659534,0.061711,41878.0,41876.0,0.00351592]
[1641690659733,0.059711,41878.0,41876.0,0.00351592]
[1641690660373,0.001,41878.0,41876.0,0.06922459]
[1641690660573,0.001,41878.0,41877.0,0.60941254]
[1641690660772,0.001,41878.0,41877.0,0.99358354]
[1641690660972,0.001,41878.0,41877.0,0.784171]
[1641690661473,0.001,41878.0,41877.0,0.99507502]
[1641690661673,0.059695,41886.0,41882.0,0.17908188]
[1641690661872,0.059695,41886.0,41882.0,0.059694]
[1641690662072,0.030447,41885.0,41882.0,0.059694]
[1641690662273,0.059695,41886.0,41882.0,0.059694]
[1641690662474,0.077695,41886.0,41882.0,0.064694]
[1641690662874,0.077695,41886.0,41884.0,0.05969449]
[1641690663072,0.077695,41886.0,41884.0,0.05469449]
[1641690663571,0.059692,41888.0,41886.0,0.018]
[1641690663832,0.00041437,41896.0,41889.0,1.21479029]
[1641690664031,0.00041437,41896.0,41895.0,0.00126889]
[1641690664232,0.00041437,41896.0,41895.0,1.38560089]
[1641690664433,0.0008288,41896.0,41895.0,1.38560089]
[1641690664631,0.00041443,41896.0,41895.0,1.38560089]
[1641690665033,0.03774752,41909.0,41897.0,0.2]
[1641690665237,0.03774752,41909.0,41906.0,0.059664]
[1641690666035,0.28228823,41909.0,41906.0,0.059664]
[1641690666436,0.36595323,41909.0,41906.0,0.122329]
[1641690666634,0.60595323,41909.0,41906.0,0.097329]
[1641690666836,0.54128823,41909.0,41907.0,0.05966426]
[1641690667787,0.54171439,41909.0,41907.0,0.05966426]
[1641690668182,0.51771439,41909.0,41907.0,0.05966426]
[1641690668382,0.54371439,41909.0,41907.0,0.06310926]
[1641690668784,0.54370485,41909.0,41907.0,0.06310926]
[1641690669384,0.54370485,41909.0,41907.0,0.004]
[1641690669586,0.51770485,41909.0,41900.0,0.12057281]
[1641690669786,0.51770485,41909.0,41901.0,0.60343895]
[1641690669985,0.51810557,41909.0,41901.0,0.60343895]
[1641690670185,0.059668,41906.0,41901.0,0.60343895]
[1641690670389,0.41768895,41909.0,41906.0,0.11932776]
[1641690671088,0.41728823,41909.0,41906.0,0.11932776]
[1641690672124,0.00040071,41908.0,41906.0,0.17899076]
[1641690672325,0.00040071,41908.0,41906.0,0.18599076]
[1641690672927,0.06006471,41908.0,41906.0,0.066663]
[1641690673325,0.06006582,41908.0,41906.0,0.066663]
[1641690673727,0.06006582,41908.0,41906.0,0.11932958]
[1641690674126,0.00040182,41908.0,41906.0,0.11932958]
[1641690674326,0.00441119,41908.0,41906.0,0.33723896]
[1641690675769,0.00041119,41908.0,41906.0,0.32823896]
[1641690676369,0.00441119,41908.0,41906.0,0.34323896]
[1641690676770,0.00441119,41908.0,41906.0,0.33732418]
[1641690677069,0.06407419,41908.0,41906.0,0.33732418]
[1641690677673,0.06007372,41908.0,41906.0,0.32232418]
[1641690677871,0.06007372,41908.0,41906.0,0.1134148]
[1641690678472,0.06307372,41908.0,41906.0,0.1294148]
[1641690678719,0.06307353,41908.0,41906.0,0.1294148]
[1641690679421,0.00341053,41908.0,41906.0,0.1294148]
[1641690679624,0.00041053,41908.0,41906.0,0.1134148]
[1641690680422,0.00241053,41908.0,41906.0,0.1234148]
[1641690681622,0.00241053,41908.0,41906.0,0.1134148]
[1641690681823,0.00041053,41908.0,41906.0,0.1134148]
[1641690682026,0.00082106,41908.0,41906.0,0.1134148]
[1641690682224,0.00082106,41908.0,41907.0,0.5981891]
[1641690682225,0.00041053,41908.0,41907.0,0.5981891]
[1641690682480,0.00041053,41908.0,41907.0,1.49939087]
[1641690682682,0.00041053,41908.0,41907.0,1.79939087]
[1641690682877,0.00041053,41908.0,41907.0,1.58553377]
[1641690683078,0.00041053,41908.0,41907.0,1.63333377]
[1641690683479,0.147038,41909.0,41908.0,1.38561006]
[1641690683677,0.147038,41909.0,41908.0,1.53341006]
[1641690683878,0.0164249,41910.0,41909.0,1.0]
[1641690684079,0.0114249,41910.0,41909.0,1.532132]
[1641690684478,0.0114249,41910.0,41909.0,1.556132]
[1641690685682,0.0114249,41910.0,41909.0,1.532132]
[1641690686522,0.0114249,41910.0,41909.0,1.557132]
[1641690687325,0.0002,41910.0,41909.0,1.557132]
[1641690687529,0.0002,41910.0,41909.0,0.657132]
[1641690688224,0.0002,41910.0,41909.0,0.632132]
[1641690688527,0.0002,41910.0,41909.0,0.654132]
[1641690688925,0.0002,41910.0,41909.0,0.86330292]
[1641690689325,0.0002,41910.0,41909.0,0.91330292]
[1641690689724,0.0002,41910.0,41909.0,0.89130292]
[1641690689975,0.0002,41910.0,41909.0,0.482132]
[1641690690373,0.0002,41910.0,41909.0,1.02474146]
[1641690691573,0.0002,41910.0,41909.0,0.99374146]
[1641690692473,0.0002,41910.0,41909.0,1.00874146]
[1641690693725,0.0002,41910.0,41909.0,0.99374146]
[1641690694526,0.0002,41910.0,41909.0,1.00774146]
[1641690695326,0.0002,41910.0,41909.0,0.646132]
[1641690695726,0.0002,41910.0,41909.0,0.632132]
[1641690696125,0.0001,41910.0,41909.0,0.632132]
[1641690696329,0.0001,41910.0,41909.0,0.63340097]
[1641690696527,0.0001,41910.0,41909.0,0.64840097]
[1641690697128,0.0001,41910.0,41909.0,0.54840097]
[1641690697577,0.0001,41910.0,41909.0,0.49340097]
[1641690697777,0.0001,41910.0,41909.0,0.47840097]
[1641690698378,0.0001,41910.0,41909.0,0.78646505]
[1641690698578,0.0001,41910.0,41909.0,0.78767593]
[1641690699178,0.0001,41910.0,41909.0,0.88767593]
[1641690699378,0.0001,41910.0,41909.0,0.93767593]
[1641690699678,0.0001,41910.0,41909.0,0.91867593]
[1641690700380,0.1004983,41912.0,41911.0,1.0]
[1641690700578,0.1004983,41912.0,41911.0,1.48540166]
[1641690700981,0.00031001,41915.0,41913.0,0.2]
[1641690700982,0.0001,41915.0,41913.0,0.2]
[1641690701231,0.0001,41915.0,41914.0,0.79984443]
[1641690701431,0.0001,41915.0,41914.0,0.84984443]
[1641690701832,0.0001,41915.0,41914.0,0.94984443]
[1641690702531,0.02516201,41919.0,41917.0,0.2]
[1641690702532,0.00020791,41918.0,41917.0,0.2]
[1641690702830,0.02036992,41919.0,41918.0,0.384133]
[1641690704431,0.02036992,41919.0,41918.0,0.398133]
[1641690705473,0.02036992,41919.0,41918.0,0.014]
[1641690705674,0.02036992,41919.0,41911.0,0.11930361]
[1641690705874,0.02036992,41919.0,41916.0,0.05965042]
[1641690706073,0.02078343,41919.0,41916.0,0.05965042]
[1641690706275,0.23500242,41918.0,41916.0,0.05965042]
[1641690706475,0.23500242,41918.0,41916.0,0.08865042]
[1641690706879,1.19871399,41917.0,41916.0,0.029]
[1641690707077,0.953737,41917.0,41916.0,0.029]
[1641690707678,0.953737,41917.0,41910.0,0.25685264]
[1641690707877,0.85966,41917.0,41913.0,0.059656]
[1641690708278,0.85966,41917.0,41910.0,0.37615892]
[1641690708477,0.86066,41917.0,41913.0,0.011]
[1641690708921,0.86066,41917.0,41914.0,0.059655]
[1641690709121,0.06066,41917.0,41915.0,0.059653]
[1641690709322,0.06066,41917.0,41913.0,0.011]
[1641690709722,0.05966,41917.0,41910.0,0.37616181]
[1641690709922,0.05966,41917.0,41913.0,0.059657]
[1641690710322,0.05966,41917.0,41913.0,0.059654]
[1641690710523,0.06166,41917.0,41913.0,0.073654]
[1641690710925,0.28832859,41916.0,41913.0,0.014]
[1641690711130,0.953737,41914.0,41913.0,0.014]
[1641690711325,1.01024975,41914.0,41913.0,0.014]
[1641690711524,1.01024975,41914.0,41908.0,0.00042548]
[1641690711726,0.05967547,41911.0,41908.0,0.00042548]
[1641690712028,0.75865653,41909.0,41908.0,0.00042548]
[1641690712225,1.31095239,41909.0,41908.0,0.00042548]
[1641690712478,0.58081597,41909.0,41908.0,0.00042548]
[1641690712879,0.006,41911.0,41908.0,0.00042548]
[1641690713081,0.006,41911.0,41908.0,0.06007948]
[1641690713482,0.006,41911.0,41908.0,0.11973648]
[1641690713681,0.006,41911.0,41898.0,0.119309]
[1641690713682,0.85923152,41908.0,41892.0,0.00124286]
[1641690713882,0.27969024,41907.0,41892.0,0.00124286]
[1641690714079,2.91542688,41906.0,41891.0,0.11935835]
[1641690714279,0.059681,41900.0,41890.0,1.09257016]
[1641690714480,0.059681,41900.0,41896.0,0.059674]
[1641690714682,0.059681,41900.0,41894.0,0.41881315]
[1641690715481,0.059681,41900.0,41897.0,0.11935153]
[1641690715681,0.059681,41900.0,41895.0,0.23869551]
[1641690715881,0.059681,41900.0,41890.0,0.32060862]
[1641690716083,0.31402306,41896.0,41890.0,0.32060862]
[1641690716330,0.059682,41895.0,41894.0,0.384133]
[1641690716529,0.059682,41895.0,41890.0,0.11936]
[1641690717533,0.28391684,41895.0,41892.0,0.059685]
[1641690717731,0.22746571,41894.0,41891.0,0.11935972]
[1641690717932,0.22746571,41894.0,41889.0,0.47326063]
[1641690718131,0.059682,41895.0,41893.0,0.00113013]
[1641690718330,0.903737,41894.0,41893.0,0.00113013]
[1641690718532,1.15543194,41894.0,41893.0,0.00113013]
[1641690718935,1.15543194,41894.0,41889.0,0.41357157]
[1641690718936,0.8,41893.0,41889.0,0.41357157]
[1641690719133,0.00122375,41890.0,41889.0,0.41357157]
[1641690719334,1.06246575,41890.0,41889.0,0.37839218]
[1641690719534,1.26246575,41890.0,41889.0,0.27849218]
[1641690719732,0.00126849,41887.0,41876.0,0.00308363]
[1641690719991,0.5,41886.0,41876.0,0.00308363]
[1641690720188,0.0478,41885.0,41876.0,0.00308363]
[1641690720386,0.0478,41885.0,41878.0,0.05970231]
[1641690720588,0.1251059,41882.0,41876.0,0.00308363]
[1641690720787,0.00124577,41879.0,41873.0,0.22690047]
[1641690720987,0.00124577,41879.0,41872.0,0.33539753]
[1641690721490,0.0654049,41882.0,41874.0,0.059708]
[1641690721690,0.0478,41885.0,41875.0,0.44384]
[1641690722392,0.0478,41885.0,41878.0,0.119394]
[1641690722592,0.059703,41881.0,41878.0,0.119394]
[1641690722792,0.19072362,41880.0,41872.0,0.33539753]
[1641690722992,0.0478,41879.0,41868.0,0.000696]
[1641690723726,0.26630499,41872.0,41868.0,0.000696]
[1641690723929,0.05972,41870.0,41868.0,0.000696]
[1641690724631,0.06172,41870.0,41868.0,0.000696]
[1641690724827,0.06172,41870.0,41868.0,0.00112931]
[1641690725133,0.23062805,41869.0,41868.0,0.00112931]
[1641690726026,0.38436505,41869.0,41868.0,0.00112931]
[1641690726628,0.39036505,41869.0,41868.0,0.00112931]
[1641690727026,0.89036505,41869.0,41868.0,0.00112931]
[1641690727475,0.39036505,41869.0,41868.0,0.00112931]
[1641690727878,0.393737,41869.0,41868.0,0.00112931]
[1641690728075,0.393737,41869.0,41868.0,0.00155287]
[1641690728278,0.393737,41869.0,41868.0,0.00111956]
[1641690728577,0.405737,41869.0,41868.0,0.00111956]
[1641690729376,0.405737,41869.0,41868.0,0.00111978]
[1641690729775,0.62486286,41869.0,41868.0,0.00111978]
[1641690729976,0.393737,41869.0,41868.0,0.00111978]
[1641690730577,0.409737,41869.0,41868.0,0.00111978]
[1641690730977,0.256,41869.0,41868.0,0.00111978]
[1641690731429,0.256,41869.0,41868.0,0.00154356]
[1641690731628,0.256,41869.0,41868.0,0.00111978]
[1641690731829,0.24,41869.0,41868.0,0.00111978]
[1641690732031,0.393737,41869.0,41868.0,0.00111978]
[1641690732630,0.63866016,41869.0,41868.0,0.00111978]
[1641690732828,0.64003957,41869.0,41868.0,0.00111978]
[1641690733330,0.401737,41869.0,41868.0,0.00111978]
[1641690733729,0.62791586,41869.0,41868.0,0.00111978]
[1641690733930,0.393737,41869.0,41868.0,0.00111978]
[1641690734130,0.62825538,41869.0,41868.0,0.00111978]
[1641690734331,0.62825538,41869.0,41861.0,0.004]
[1641690734332,0.7,41868.0,41861.0,0.004]
[1641690734631,0.059735,41864.0,41861.0,0.004]
[1641690734830,0.1529271,41863.0,41861.0,0.004]
[1641690735093,0.059735,41864.0,41861.0,0.004]
[1641690735391,0.31095923,41865.0,41861.0,0.004]
[1641690735694,0.06095358,41864.0,41861.0,0.004]
[1641690735892,0.152867,41863.0,41861.0,0.004]
[1641690736691,0.221602,41863.0,41861.0,0.004]
[1641690737294,0.068735,41863.0,41861.0,0.004]
[1641690738090,0.009,41863.0,41861.0,0.00443232]
[1641690738493,0.008,41863.0,41861.0,0.00443232]
[1641690738727,0.008,41863.0,41861.0,0.06415536]
[1641690739330,0.008,41863.0,41861.0,0.00443232]
[1641690739728,0.29601491,41867.0,41861.0,0.00443232]
[1641690739929,0.41547391,41867.0,41861.0,0.00443232]
[1641690740127,0.39224494,41872.0,41861.0,0.00443232]
[1641690740128,0.20767612,41869.0,41861.0,0.00443232]
[1641690740328,0.32201187,41864.0,41861.0,0.00443232]
[1641690740931,0.059729,41863.0,41861.0,0.00443232]
[1641690741429,0.059729,41863.0,41862.0,0.00043231]
[1641690741628,0.212596,41863.0,41862.0,0.00043231]
[1641690741829,0.462596,41863.0,41862.0,0.00043231]
[1641690742475,0.470596,41863.0,41862.0,0.0008549]
[1641690742677,0.470596,41863.0,41862.0,0.00042259]
[1641690743881,1.012596,41863.0,41862.0,0.00042259]
[1641690744280,1.01381457,41863.0,41862.0,0.00042259]
[1641690744480,1.06961457,41863.0,41862.0,0.00042259]
[1641690744680,0.8,41862.0,41861.0,2.259e-05]
[1641690744880,0.5,41861.0,41851.0,0.004]
[1641690745083,0.059749,41856.0,41851.0,0.004]
[1641690745480,0.152867,41855.0,41851.0,0.004]
[1641690745680,0.5462495,41855.0,41851.0,0.004]
[1641690745881,0.94467468,41855.0,41851.0,0.004]
[1641690746231,0.26120909,41846.0,41843.0,0.000696]
[1641690746730,0.1,41854.0,41843.0,0.000696]
[1641690746930,0.1,41854.0,41852.0,0.0004303]
[1641690747128,0.602867,41853.0,41852.0,0.0004303]
[1641690747528,0.662622,41853.0,41852.0,0.0004303]
[1641690747728,0.92781689,41853.0,41852.0,0.0004303]
[1641690748329,0.47781689,41853.0,41852.0,0.0004303]
[1641690748533,0.95576798,41853.0,41852.0,0.0004303]
[1641690748731,0.72481689,41853.0,41852.0,0.0004303]
[1641690749130,0.72481689,41853.0,41852.0,0.0008606]
[1641690749330,0.72481689,41853.0,41852.0,0.0004303]
[1641690749734,0.71781689,41853.0,41852.0,0.0004303]
[1641690750179,0.71781689,41853.0,41852.0,0.0008606]
[1641690750382,0.71781689,41853.0,41852.0,0.0004303]
[1641690750579,0.77681689,41853.0,41852.0,0.0004303]
[1641690750779,0.72681689,41853.0,41852.0,0.0004303]
[1641690751379,0.72681689,41853.0,41852.0,0.00041193]
[1641690751781,0.71781689,41853.0,41852.0,0.00041193]
[1641690752378,0.452622,41853.0,41852.0,0.00041193]
[1641690752579,0.459622,41853.0,41852.0,0.00041193]
[1641690753578,0.459622,41853.0,41852.0,0.00042062]
[1641690753825,0.452622,41853.0,41852.0,0.00042062]
[1641690754525,0.468622,41853.0,41852.0,0.00042062]
[1641690755827,0.468622,41853.0,41852.0,0.00042084]
[1641690756430,0.452622,41853.0,41852.0,0.00042084]
[1641690756632,0.307755,41853.0,41852.0,0.20836323]
[1641690756830,0.248,41853.0,41852.0,0.20878407]
[1641690757129,0.248,41853.0,41852.0,0.00042084]
[1641690757975,0.248,41853.0,41852.0,0.00084168]
[1641690757976,0.299742,41853.0,41852.0,0.00084168]
[1641690758172,0.299742,41853.0,41852.0,0.00042084]
[1641690758975,0.452609,41853.0,41852.0,0.00042084]
[1641690759178,0.452609,41853.0,41852.0,0.06016335]
[1641690759677,0.76534031,41853.0,41852.0,0.00042084]
[1641690760279,0.452609,41853.0,41852.0,0.00042084]
[1641690760776,0.454609,41853.0,41852.0,0.00042084]
[1641690761228,0.454609,41853.0,41852.0,0.00084168]
[1641690761431,0.454609,41853.0,41852.0,0.00042084]
[1641690761829,0.452609,41853.0,41852.0,0.00042084]
[1641690762529,0.458609,41853.0,41852.0,0.00042084]
[1641690763429,0.458609,41853.0,41852.0,0.06016455]
[1641690763629,0.305742,41853.0,41852.0,0.06016455]
[1641690763828,0.299742,41853.0,41852.0,0.06016455]
[1641690764632,0.304742,41853.0,41852.0,0.06016455]
[1641690765074,0.33995494,41853.0,41852.0,0.06016455]
[1641690765677,0.28021294,41853.0,41852.0,0.06016455]
[1641690765878,0.24,41853.0,41852.0,0.27630656]
[1641690766075,0.24,41853.0,41852.0,0.66082656]
[1641690768929,0.24,41853.0,41852.0,0.6612474]
[1641690769128,0.24,41853.0,41852.0,0.66082656]
[1641690771135,0.24,41853.0,41852.0,0.6612474]
[1641690771334,0.24,41853.0,41852.0,0.66082656]
[1641690772333,0.24,41853.0,41852.0,0.44468455]
[1641690773380,0.24,41853.0,41852.0,0.06016455]
[1641690774585,0.241,41853.0,41852.0,0.06016455]
[1641690775886,0.24,41853.0,41852.0,0.06016455]
[1641690776528,0.241,41853.0,41852.0,0.44468455]
[1641690776726,0.241,41853.0,41852.0,0.85593801]
[1641690777527,0.241,41853.0,41852.0,0.64468455]
[1641690777926,0.24,41853.0,41852.0,0.64468455]
[1641690778126,0.24,41853.0,41852.0,0.44468455]
[1641690782177,0.24,41853.0,41852.0,0.44510539]
[1641690782376,0.24,41853.0,41852.0,0.44468455]
[1641690783183,0.24,41853.0,41852.0,0.06016455]
[1641690783379,0.942867,41853.0,41852.0,0.00042084]
[1641690784029,1.2026319,41853.0,41852.0,0.00042084]
[1641690784328,1.2026319,41853.0,41852.0,0.00084168]
[1641690784529,1.2096319,41853.0,41852.0,0.00042084]
[1641690784727,0.6596319,41853.0,41852.0,0.00042084]
[1641690785328,0.90135528,41853.0,41852.0,0.00042084]
[1641690785827,0.952867,41852.0,41844.0,0.05517684]
[1641690786029,0.059756,41849.0,41844.0,0.05517684]
[1641690786328,0.29258635,41845.0,41844.0,0.059755]
[1641690787128,0.29258635,41845.0,41843.0,0.000696]
[1641690787329,0.059755,41844.0,41843.0,0.060452]
[1641690788381,0.059755,41844.0,41843.0,0.12020527]
[1641690788580,0.060755,41844.0,41843.0,0.12020527]
[1641690789781,0.059755,41844.0,41843.0,0.12020527]
[1641690790682,0.060755,41844.0,41843.0,0.12020527]
[1641690791224,0.035755,41844.0,41843.0,0.12063346]
[1641690791423,0.035755,41844.0,41843.0,0.06087746]
[1641690791924,0.034755,41844.0,41843.0,0.06087746]
[1641690792125,0.034755,41844.0,41843.0,0.06087861]
[1641690792325,0.034755,41844.0,41843.0,0.05587861]
[1641690792825,0.035755,41844.0,41843.0,0.00112534]
[1641690794026,0.034755,41844.0,41843.0,0.00112534]
[1641690794625,0.040755,41844.0,41843.0,0.00112534]
[1641690795379,0.040755,41844.0,41843.0,0.00111449]
[1641690795982,0.034755,41844.0,41843.0,0.00111449]
[1641690796581,0.037755,41844.0,41843.0,0.00111428]
[1641690797878,0.034755,41844.0,41843.0,0.00111428]
[1641690798283,0.034755,41844.0,41843.0,0.00153256]
[1641690798728,0.037755,41844.0,41843.0,0.00153256]
[1641690799529,0.277755,41844.0,41843.0,0.00153256]
[1641690799931,0.277755,41844.0,41843.0,0.00111428]
[1641690800732,0.277755,41844.0,41843.0,0.00111269]
[1641690800733,0.279755,41844.0,41843.0,0.00111269]
[1641690801936,0.274755,41844.0,41843.0,0.00111269]
[1641690802779,0.275755,41844.0,41843.0,0.00111269]
[1641690803580,0.241,41844.0,41843.0,0.00111269]
[1641690803977,0.241,41844.0,41843.0,0.58563269]
[1641690804178,0.241,41844.0,41843.0,0.58563485]
[1641690804377,0.32097011,41854.0,41844.0,1.04745777]
[1641690804679,0.03607011,41854.0,41848.0,0.059744]
[1641690804878,0.03607011,41854.0,41850.0,0.11948568]
[1641690805778,0.03607011,41854.0,41852.0,0.059743]
[1641690806081,0.03607011,41854.0,41852.0,0.05974284]
[1641690806528,0.119486,41855.0,41852.0,0.05974284]
[1641690806728,0.01,41854.0,41852.0,0.05974284]
[1641690806929,0.069745,41854.0,41848.0,0.35840001]
[1641690807329,0.069745,41854.0,41850.0,0.059745]
[1641690807529,0.069745,41854.0,41849.0,0.119486]
[1641690807929,0.059745,41854.0,41849.0,0.119486]
[1641690808130,0.059745,41854.0,41852.0,0.05974659]
[1641690808731,0.068745,41854.0,41852.0,0.05974659]
[1641690809976,0.058745,41854.0,41852.0,0.11948859]
[1641690810176,0.298745,41854.0,41852.0,0.11948859]
[1641690810379,0.298745,41854.0,41852.0,0.05974659]
[1641690810777,0.309745,41854.0,41852.0,0.05974659]
[1641690812081,0.298745,41854.0,41852.0,0.05974659]
[1641690812582,0.298745,41854.0,41853.0,0.32050041]
[1641690812781,0.251,41854.0,41853.0,0.32050041]
[1641690812984,0.251,41854.0,41853.0,0.70502041]
[1641690813181,0.251,41854.0,41853.0,0.38452]
[1641690813832,0.239,41854.0,41853.0,0.38452]
[1641690814036,0.239,41854.0,41852.0,0.23896759]
[1641690814630,0.28,41854.0,41852.0,0.24196759]
[1641690816031,0.28,41854.0,41852.0,0.23896759]
[1641690816234,0.239,41854.0,41852.0,0.23896759]
[1641690816432,0.239,41854.0,41852.0,0.64859641]
[1641690816634,0.264,41854.0,41853.0,0.59118541]
[1641690816834,0.264,41854.0,41852.0,0.24796759]
[1641690817677,0.264,41854.0,41853.0,0.38452]
[1641690817877,0.239,41854.0,41853.0,0.38452]
[1641690818479,0.239,41854.0,41853.0,0.5904881]
[1641690818679,0.252,41854.0,41853.0,0.5994881]
[1641690818980,0.252,41854.0,41853.0,0.39352]
[1641690819880,0.252,41854.0,41853.0,0.38452]
[1641690820080,0.239,41854.0,41853.0,0.38452]
[1641690820681,0.249,41854.0,41853.0,0.009]
[1641690821935,0.249,41854.0,41852.0,0.23896759]
[1641690822134,0.239,41854.0,41852.0,0.23896759]
[1641690822538,0.239,41854.0,41851.0,0.17922]
[1641690822539,0.239,41854.0,41851.0,0.059747]
[1641690822736,0.239,41854.0,41852.0,0.011]
[1641690822737,0.30572579,41853.0,41852.0,0.011]
[1641690822940,1.10572579,41853.0,41852.0,0.011]
[1641690823638,0.30572579,41853.0,41852.0,0.011]
[1641690823836,0.70572579,41853.0,41852.0,0.011]
[1641690824039,0.36933964,41852.0,41850.0,0.05974809]
[1641690824247,0.152867,41851.0,41850.0,0.05974809]
[1641690824536,0.152867,41851.0,41847.0,0.00041654]